fUSD/lending_fUSD_20250417
["ID","MTS","AMOUNT","RATE_DAILY","PERIOD"]
[358262958,1744878646562,-500.0,0.00347945,120]
[358262959,1744878646572,-588.48,0.00347945,120]
[358262960,1744878646581,-1202.53,0.00347945,120]
[358262961,1744878646590,-500.0,0.00347945,120]
[358262962,1744878646599,-500.0,0.00347945,120]
[358262963,1744878646608,-500.0,0.00347945,120]
[358262964,1744878646617,-500.0,0.00347945,120]
[358262965,1744878646626,-500.0,0.00347945,120]
[358262966,1744878646635,-500.0,0.00347945,120]
[358262967,1744878646644,-500.0,0.00347945,120]
[358262968,1744878646654,-500.0,0.00347945,120]
[358262969,1744878646663,-500.0,0.00347945,120]
[358262970,1744878646672,-3524.25,0.00347945,120]
[358262971,1744878646681,-500.0,0.00347945,120]
[358262972,1744878646691,-500.0,0.00347945,120]
[358262973,1744878646700,-500.0,0.00347945,120]
[358262974,1744878646710,-500.0,0.00347945,120]
[358262975,1744878646719,-500.0,0.00347945,120]
[358262976,1744878646728,-500.0,0.00347945,120]
[358262977,1744878646739,-500.0,0.00347945,120]
[358262978,1744878646749,-500.0,0.00347945,120]
[358262979,1744878646758,-500.0,0.00347945,120]
[358262980,1744878646768,-29806.68,0.00372602,7]
[358262981,1744878646777,-500.0,0.00372602,120]
[358262982,1744878646787,-588.48,0.00372602,120]
[358262983,1744878646797,-1202.53,0.00372602,120]
[358262984,1744878646806,-500.0,0.00372602,120]
[358262985,1744878646815,-500.0,0.00372602,120]
[358262986,1744878646824,-500.0,0.00372602,120]
[358262987,1744878646832,-500.0,0.00372602,120]
[358262988,1744878646841,-500.0,0.00372602,120]
[358262989,1744878646849,-500.0,0.00372602,120]
[358262990,1744878646858,-500.0,0.00372602,120]
[358262991,1744878646866,-500.0,0.00372602,120]
[358262992,1744878646876,-3524.25,0.00372602,120]
[358262993,1744878646885,-500.0,0.00372602,120]
[358262994,1744878646895,-500.0,0.00372602,120]
[358262995,1744878646909,-500.0,0.00372602,120]
[358262996,1744878646918,-500.0,0.00372602,120]
[358262997,1744878646928,-500.0,0.00372602,120]
[358262998,1744878646937,-500.0,0.00372602,120]
[358262999,1744878646947,-500.0,0.00372602,120]
[358263000,1744878646956,-500.0,0.00372602,120]
[358263001,1744878646965,-500.0,0.00372602,120]
[358263002,1744878646975,-565.0,0.00382496,120]
[358263003,1744878646985,-565.0,0.00382496,120]
[358263004,1744878646994,-565.0,0.00382496,120]
[358263005,1744878647003,-565.0,0.00382496,120]
[358263006,1744878647012,-565.0,0.00382496,120]
[358263007,1744878647021,-565.0,0.00382496,120]
[358263008,1744878647031,-565.0,0.00382496,120]
[358263009,1744878647040,-565.0,0.00382496,120]
[358263010,1744878647049,-565.0,0.00382496,120]
[358263011,1744878647058,-565.0,0.00382496,120]
[358263012,1744878647068,-565.0,0.00382496,120]
[358263013,1744878647077,-565.0,0.00382496,120]
[358263014,1744878647086,-565.0,0.00382496,120]
[358263015,1744878647095,-565.0,0.00382496,120]
[358263016,1744878647104,-565.0,0.00382496,120]
[358263017,1744878647113,-565.0,0.00382496,120]
[358263018,1744878647122,-565.0,0.00382496,120]
[358263019,1744878647131,-565.0,0.00382496,120]
[358263020,1744878647141,-565.0,0.00382496,120]
[358263021,1744878647150,-565.0,0.00382496,120]
[358263022,1744878647159,-565.0,0.00382496,120]
[358263023,1744878647169,-565.0,0.00382496,120]
[358263024,1744878647178,-565.0,0.00382496,120]
[358263025,1744878647188,-565.0,0.00382496,120]
[358263026,1744878647197,-565.0,0.00382496,120]
[358263027,1744878647206,-565.0,0.00382496,120]
[358263028,1744878647214,-565.0,0.00382496,120]
[358263029,1744878647223,-565.0,0.00382496,120]
[358263030,1744878647232,-565.0,0.00382496,120]
[358263031,1744878647242,-565.0,0.00382496,120]
[358263032,1744878647251,-565.0,0.00382496,120]
[358263033,1744878647260,-565.0,0.00382496,120]
[358263034,1744878647269,-565.0,0.00382496,120]
[358263035,1744878647277,-565.0,0.00382496,120]
[358263036,1744878647287,-565.0,0.00382496,120]
[358263037,1744878647296,-565.0,0.00382496,120]
[358263038,1744878647304,-565.0,0.00382496,120]
[358263039,1744878647314,-565.0,0.00382496,120]
[358263040,1744878647323,-565.0,0.00382496,120]
[358263041,1744878647332,-565.0,0.00382496,120]
[358263042,1744878647342,-565.0,0.00382496,120]
[358263043,1744878647351,-565.0,0.00382496,120]
[358263044,1744878647360,-565.0,0.00382496,120]
[358263045,1744878647369,-565.0,0.00382496,120]
[358263046,1744878647378,-565.0,0.00382496,120]
[358263047,1744878647387,-565.0,0.00382496,120]
[358263048,1744878647397,-565.0,0.00382496,120]
[358263049,1744878647406,-565.0,0.00382496,120]
[358263050,1744878647415,-565.0,0.00382496,120]
[358263051,1744878647424,-565.0,0.00382496,120]
[358263052,1744878647433,-565.0,0.00382496,120]
[358263053,1744878647442,-565.0,0.00382496,120]
[358263054,1744878647451,-565.0,0.00382496,120]
[358263055,1744878647460,-565.0,0.00382496,120]
[358263056,1744878647470,-565.0,0.00382496,120]
[358263057,1744878647479,-565.0,0.00382496,120]
[358263058,1744878647488,-477.0,0.003885,120]
[358263059,1744878647498,-2000.0,0.0039,120]
[358263060,1744878647507,-60139.7355394,0.0039114,120]
[358263061,1744878647517,-29806.68,0.0039726,7]
[358263062,1744878647527,-500.0,0.0039726,120]
[358263063,1744878647536,-588.48,0.0039726,120]
[358263064,1744878647545,-1202.53,0.0039726,120]
[358263065,1744878647554,-500.0,0.0039726,120]
[358263066,1744878647564,-500.0,0.0039726,120]
[358263067,1744878647573,-500.0,0.0039726,120]
[358263068,1744878647582,-376.93986893,0.0039726,120]
[358263069,1744878647591,-500.0,0.0039726,120]
[358263070,1744878647600,-500.0,0.0039726,120]
[358263071,1744878647609,-500.0,0.0039726,120]
[358263072,1744878647618,-360.9330231,0.0039726,120]
[358263073,1744878647627,-3524.25,0.0039726,120]
[358263074,1744878647636,-500.0,0.0039726,120]
[358263075,1744878647645,-500.0,0.0039726,120]
[358263076,1744878647654,-418.78134418,0.0039726,120]
[358263077,1744878647663,-511.45462625,0.0039726,120]
[358263078,1744878647672,-485.78959782,0.0039726,120]
[358263079,1744878647681,-500.0,0.0039726,120]
[358263080,1744878647690,-500.0,0.0039726,120]
[358263081,1744878647699,-500.0,0.0039726,120]
[358263082,1744878647708,-500.0,0.0039726,120]
[358263083,1744878647718,-60000.0,0.004,20]
[358263084,1744878647727,-10000.0,0.004,90]
[358263085,1744878647737,-11035.19422595,0.004,120]
[358263086,1744878647746,-892.15559837,0.00412757,120]
[358263087,1744878647755,-29806.68,0.00421917,7]
[358263088,1744878647765,-308.58769632,0.00421917,120]
[358263089,1744878647774,-588.48,0.00421917,120]
[358263090,1744878647784,-1202.53,0.00421917,120]
[358263091,1744878647793,-500.0,0.00421917,120]
[358263092,1744878647802,-500.0,0.00421917,120]
[358263093,1744878647811,-500.0,0.00421917,120]
[358263094,1744878647820,-500.0,0.00421917,120]
[358263095,1744878647829,-161.82381747,0.00421917,120]
[358263096,1744878647838,-500.0,0.00421917,120]
[358263097,1744878647848,-3524.25,0.00421917,120]
[358263098,1744878647857,-500.0,0.00421917,120]
[358263099,1744878647866,-500.0,0.00421917,120]
[358263100,1744878647876,-500.0,0.00421917,120]
[358263101,1744878647885,-188.60909268,0.00421917,120]
[358263102,1744878647895,-597.92202472,0.00421917,120]
[358263103,1744878647909,-500.0,0.00421917,120]
[358263104,1744878647918,-2000.0,0.0043,120]
[358263105,1744878647928,-29806.68,0.00446575,7]
[358263106,1744878647938,-588.48,0.00446575,120]
[358263107,1744878647949,-1202.53,0.00446575,120]
[358263108,1744878647958,-500.0,0.00446575,120]
[358263109,1744878647968,-500.0,0.00446575,120]
[358263110,1744878647978,-419.33,0.00446575,120]
[358263111,1744878647988,-479.83872538,0.00446575,120]
[358263112,1744878647997,-500.0,0.00446575,120]
[358263113,1744878648007,-3524.25,0.00446575,120]
[358263114,1744878648016,-500.0,0.00446575,120]
[358263115,1744878648026,-500.0,0.00446575,120]
[358263116,1744878648035,-500.0,0.00446575,120]
[358263117,1744878648044,-500.0,0.00446575,120]
[358263118,1744878648053,-87111.00139975,0.0047,2]
[358263119,1744878648062,-29806.68,0.00471232,7]
[358263120,1744878648072,-588.48,0.00471232,120]
[358263121,1744878648107,-1202.53,0.00471232,120]
[358263122,1744878648116,-248.63032351,0.00471232,120]
[358263123,1744878648125,-205.8684775,0.00471232,120]
[358263124,1744878648134,-500.0,0.00471232,120]
[358263125,1744878648144,-3524.25,0.00471232,120]
[358263126,1744878648153,-500.0,0.00471232,120]
[358263127,1744878648162,-500.0,0.00471232,120]
[358263128,1744878648172,-500.0,0.00471232,120]
[358263129,1744878648182,-500.0,0.00471232,120]
[358263130,1744878648191,-68571.0,0.0048,120]
[358263131,1744878648200,-22892.20000099,0.0049,120]
[358263132,1744878648209,-60139.7355394,0.00493689,120]
[358263133,1744878648218,-4627.0,0.0049589,120]
[358263134,1744878648227,-29806.68,0.0049589,7]
[358263135,1744878648236,-588.48,0.0049589,120]
[358263136,1744878648246,-1202.53,0.0049589,120]
[358263137,1744878648255,-500.0,0.0049589,120]
[358263138,1744878648265,-3524.25,0.0049589,120]
[358263139,1744878648274,-500.0,0.0049589,120]
[358263140,1744878648283,-500.0,0.0049589,120]
[358263141,1744878648293,-482.10351197,0.0049589,120]
[358263142,1744878648302,-500.0,0.0049589,120]
[358263143,1744878648311,-169.0,0.0049863,120]
[358263144,1744878648321,-158.0,0.0049863,120]
[358263145,1744878648332,-166.41152776,0.0049863,120]
[358263146,1744878648341,-158.0,0.0049863,120]
[358263147,1744878648350,-158.0,0.0049863,120]
[358263148,1744878648359,-158.68288562,0.0049863,120]
[358263149,1744878648368,-760.5672,0.00499574,30]
[358263150,1744878648379,-152.55642483,0.00499674,120]
[358263151,1744878648388,-200.0,0.00499674,120]
[358263152,1744878648397,-207.4,0.00499674,120]
[358263153,1744878648407,-215.0738,0.00499674,120]
[358263154,1744878648416,-223.0315306,0.00499674,120]
[358263155,1744878648426,-231.28369723,0.00499674,120]
[358263156,1744878648435,-239.84119403,0.00499674,120]
[358263157,1744878648444,-248.71531821,0.00499674,120]
[358263158,1744878648454,-257.91778498,0.00499674,120]
[358263159,1744878648463,-267.46074303,0.00499674,120]
[358263160,1744878648472,-277.35679052,0.00499674,120]
[358263161,1744878648482,-287.61899177,0.00499674,120]
[358263162,1744878648491,-298.26089446,0.00499674,120]
[358263163,1744878648501,-309.29654756,0.00499674,120]
[358263164,1744878648510,-320.74051982,0.00499674,120]
[358263165,1744878648519,-332.60791905,0.00499674,120]
[358263166,1744878648529,-344.91441206,0.00499674,120]
[358263167,1744878648538,-555.57465567,0.00499674,120]
[358263168,1744878648546,-200.0,0.00499674,90]
[358263169,1744878648555,-50000.0,0.005,120]
[358263170,1744878648563,-1075.77366,0.005,120]
[358263171,1744878648573,-5000.0,0.005,120]
[358263172,1744878648582,-10000.0,0.005,90]
[358263173,1744878648591,-1228.98,0.0050854,30]
[358263174,1744878648601,-500.0,0.00519167,120]
[358263175,1744878648610,-29806.68,0.00520547,7]
[358263176,1744878648620,-588.48,0.00520547,120]
[358263177,1744878648629,-1202.53,0.00520547,120]
[358263178,1744878648638,-500.0,0.00520547,120]
[358263179,1744878648647,-3524.25,0.00520547,120]
[358263180,1744878648656,-500.0,0.00520547,120]
[358263181,1744878648666,-500.0,0.00520547,120]
[358263182,1744878648675,-500.0,0.00520547,120]
[358263183,1744878648685,-867.65063078,0.00524646,120]
[358263184,1744878648694,-29806.68,0.00545205,7]
[358263185,1744878648703,-588.48,0.00545205,120]
[358263186,1744878648712,-1202.53,0.00545205,120]
[358263187,1744878648722,-500.0,0.00545205,120]
[358263188,1744878648732,-3524.25,0.00545205,120]
[358263189,1744878648741,-500.0,0.00545205,120]
[358263190,1744878648750,-500.0,0.00545205,120]
[358263191,1744878648760,-500.0,0.00545205,120]
[358263192,1744878648770,-10000.0,0.0055,90]
[358263193,1744878648780,-3000.0,0.00568,50]
[358263194,1744878648790,-29806.68,0.00569863,7]
[358263195,1744878648799,-588.48,0.00569863,120]
[358263196,1744878648809,-1202.53,0.00569863,120]
[358263197,1744878648818,-500.0,0.00569863,120]
[358263198,1744878648827,-3524.25,0.00569863,120]
[358263199,1744878648837,-500.0,0.00569863,120]
[358263200,1744878648846,-531.97983247,0.00569863,120]
[358263201,1744878648856,-500.0,0.00569863,120]
[358263202,1744878648865,-29806.68,0.0059452,7]
[358263203,1744878648874,-588.48,0.0059452,120]
[358263204,1744878648884,-1202.53,0.0059452,120]
[358263205,1744878648893,-500.0,0.0059452,120]
[358263206,1744878648906,-3524.25,0.0059452,120]
[358263207,1744878648916,-500.0,0.0059452,120]
[358263208,1744878648925,-500.0,0.0059452,120]
[358263209,1744878648936,-60139.7355394,0.00596213,120]
[358263210,1744878648946,-10000.0,0.006,90]
[358263211,1744878648956,-1000.0,0.006,120]
[358263212,1744878648966,-29806.68,0.00619178,7]
[358263213,1744878648975,-588.48,0.00619178,120]
[358263214,1744878648986,-1202.53,0.00619178,120]
[358263215,1744878648995,-500.0,0.00619178,120]
[358263216,1744878649005,-3524.25,0.00619178,120]
[358263217,1744878649014,-500.0,0.00619178,120]
[358263218,1744878649024,-500.0,0.00619178,120]
[358263219,1744878649033,-150.0,0.00638959,120]
[358263220,1744878649043,-267.43767594,0.0064,120]
[358263221,1744878649052,-29806.68,0.00643835,7]
[358263222,1744878649062,-588.48,0.00643835,120]
[358263223,1744878649072,-1202.53,0.00643835,120]
[358263224,1744878649081,-500.0,0.00643835,120]
[358263225,1744878649091,-3524.25,0.00643835,120]
[358263226,1744878649100,-500.0,0.00643835,120]
[358263227,1744878649110,-500.0,0.00643835,120]
[358263228,1744878649119,-29806.68,0.00668493,7]
[358263229,1744878649129,-588.48,0.00668493,120]
[358263230,1744878649138,-1202.53,0.00668493,120]
[358263231,1744878649147,-524.80659142,0.00668493,120]
[358263232,1744878649157,-3524.25,0.00668493,120]
[358263233,1744878649166,-500.0,0.00668493,120]
[358263234,1744878649176,-500.0,0.00668493,120]
[358263235,1744878649185,-2110.30151709,0.006789,120]
[358263236,1744878649195,-200.0,0.0069,120]
[358263237,1744878649205,-31102.62,0.0069315,7]
[358263238,1744878649215,-29806.68,0.0069315,7]
[358263239,1744878649224,-588.48,0.0069315,120]
[358263240,1744878649234,-1202.53,0.0069315,120]
[358263241,1744878649244,-3524.25,0.0069315,120]
[358263242,1744878649253,-500.0,0.0069315,120]
[358263243,1744878649264,-500.0,0.0069315,120]
[358263244,1744878649274,-30069.8677697,0.00693907,120]
[358263245,1744878649284,-765.7174776,0.006975,120]
[358263246,1744878649294,-3000.0,0.006985,50]
[358263247,1744878649304,-150.0,0.007,120]
[358263248,1744878649314,-150.0,0.007,120]
[358263249,1744878649324,-159.12688841,0.007,120]
[358263250,1744878649333,-161.25242173,0.007,120]
[358263251,1744878649343,-150.0,0.007,120]
[358263252,1744878649353,-150.0,0.007,120]
[358263253,1744878649363,-1148.02291227,0.007,120]
[358263254,1744878649372,-200.0,0.007,120]
[358263255,1744878649382,-8000.0,0.007,120]
[358263256,1744878649392,-150.0,0.00702222,120]
[358263257,1744878649401,-150.0,0.00704444,120]
[358263258,1744878649411,-150.0,0.00705,120]
[358263259,1744878649420,-150.0,0.00706667,120]
[358263260,1744878649430,-150.0,0.00706667,120]
[358263261,1744878649440,-150.0,0.00708889,120]
[358263262,1744878649449,-200.0,0.0071,120]
[358263263,1744878649459,-150.0,0.00711111,120]
[358263264,1744878649469,-150.0,0.00713333,120]
[358263265,1744878649479,-150.0,0.00713333,120]
[358263266,1744878649488,-150.0,0.00715,120]
[358263267,1744878649498,-150.0,0.00715556,120]
[358263268,1744878649507,-150.0,0.00717778,120]
[358263269,1744878649517,-31102.62,0.00717808,7]
[358263270,1744878649526,-588.48,0.00717808,120]
[358263271,1744878649536,-1202.53,0.00717808,120]
[358263272,1744878649546,-3524.25,0.00717808,120]
[358263273,1744878649555,-500.0,0.00717808,120]
[358263274,1744878649565,-500.0,0.00717808,120]
[358263275,1744878649573,-150.0,0.0072,120]
[358263276,1744878649583,-150.0,0.0072,120]
[358263277,1744878649592,-150.0,0.00722222,120]
[358263278,1744878649602,-150.0,0.00724444,120]
[358263279,1744878649612,-150.0,0.00726667,120]
[358263280,1744878649622,-150.0,0.00726667,120]
[358263281,1744878649631,-10000.0,0.00728,120]
[358263282,1744878649641,-150.0,0.00728889,120]
[358263283,1744878649650,-150.0,0.0073,120]
[358263284,1744878649659,-200.0,0.0073,120]
[358263285,1744878649668,-150.0,0.00731111,120]
[358263286,1744878649678,-150.0,0.00733333,120]
[358263287,1744878649689,-150.0,0.00733333,120]
[358263288,1744878649699,-150.0,0.00735556,120]
[358263289,1744878649709,-150.0,0.00737778,120]
[358263290,1744878649718,-10000.0,0.00738,120]
[358263291,1744878649728,-150.0,0.0074,120]
[358263292,1744878649738,-150.0,0.0074,120]
[358263293,1744878649747,-217.4,0.00742,120]
[358263294,1744878649757,-150.0,0.00742222,120]
[358263295,1744878649767,-31102.62,0.00742465,7]
[358263296,1744878649777,-588.48,0.00742465,120]
[358263297,1744878649787,-1202.53,0.00742465,120]
[358263298,1744878649796,-3524.25,0.00742465,120]
[358263299,1744878649805,-500.0,0.00742465,120]
[358263300,1744878649815,-500.0,0.00742465,120]
[358263301,1744878649825,-150.0,0.00744444,120]
[358263302,1744878649836,-150.0,0.00745,120]
[358263303,1744878649846,-2000.0,0.0074625,120]
[358263304,1744878649855,-150.0,0.00746667,120]
[358263305,1744878649866,-150.0,0.00746667,120]
[358263306,1744878649876,-4738.60964,0.00748,120]
[358263307,1744878649886,-150.0,0.00748889,120]
[358263308,1744878649895,-565.0,0.00748993,120]
[358263309,1744878649908,-565.0,0.00748993,120]
[358263310,1744878649917,-565.0,0.00748993,120]
[358263311,1744878649926,-565.0,0.00748993,120]
[358263312,1744878649936,-565.0,0.00748993,120]
[358263313,1744878649945,-565.0,0.00748993,120]
[358263314,1744878649954,-565.0,0.00748993,120]
[358263315,1744878649963,-565.0,0.00748993,120]
[358263316,1744878649973,-565.0,0.00748993,120]
[358263317,1744878649982,-565.0,0.00748993,120]
[358263318,1744878649991,-565.0,0.00748993,120]
[358263319,1744878650000,-565.0,0.00748993,120]
[358263320,1744878650009,-565.0,0.00748993,120]
[358263321,1744878650018,-565.0,0.00748993,120]
[358263322,1744878650027,-305.95168749,0.00749,120]
[358263323,1744878650036,-565.0,0.00749215,120]
[358263324,1744878650045,-565.0,0.00749215,120]
[358263325,1744878650053,-565.0,0.00749215,120]
[358263326,1744878650062,-565.0,0.00749215,120]
[358263327,1744878650071,-565.0,0.00749215,120]
[358263328,1744878650080,-565.0,0.00749215,120]
[358263329,1744878650088,-565.0,0.00749215,120]
[358263330,1744878650097,-565.0,0.00749215,120]
[358263331,1744878650106,-565.0,0.00749215,120]
[358263332,1744878650115,-565.0,0.00749215,120]
[358263333,1744878650125,-547000.0,0.007498,120]
[358263334,1744878650134,-1000.0,0.0074999,120]
[358263335,1744878650143,-151.95279466,0.00749999,120]
[358263336,1744878650152,-1000.0,0.00749999,120]
[358263337,1744878650161,-20000.0,0.00749999,120]
[358263338,1744878650171,-50000.0,0.0075,120]
[358263339,1744878650180,-1000.0,0.0075,120]
[358263340,1744878650227,-262.44822189,0.00751041,30]
[358263341,1744878650272,-500.0,0.000648,23]
[358263342,1744878650282,-151.0,0.00139726,120]
[358263343,1744878650291,-153.299257,0.00139726,120]
[358263344,1744878650301,-12053.1278832,0.007488,120]
[358263345,1744878650313,-409.24894518,0.007488,120]
[358263346,1744878650330,-565.0,0.00382496,120]
[358263347,1744878650339,-217.067846,0.007488,120]
[358263348,1744878650351,-82320.55532562,0.007488,120]
[358263349,1744878650360,-50521.71759001,0.00751041,30]
[358263350,1744878650369,-150.0,0.00751111,120]
[358263351,1744878650379,-222.44077139,0.00751781,7]
[358263352,1744878650389,-387.46873695,0.00751781,7]
[358263353,1744878650398,-241.8834375,0.00751781,7]
[358263354,1744878650408,-150.0,0.00753333,120]
[358263355,1744878650418,-150.0,0.00753333,120]
[358263356,1744878650428,-150.0,0.00755556,120]
[358263357,1744878650437,-150.0,0.00757778,120]
[358263358,1744878650447,-234.52855234,0.0076,120]
[358263359,1744878650457,-168.7085942,0.0076,120]
[358263360,1744878650467,-215.0731162,0.0076,120]
[358263361,1744878650477,-14.33306807,0.0076,120]
[358263362,1744878650487,-2000.0,0.0076,120]
[358263363,1744878650496,-10000.0,0.0076,120]
[358263364,1744878650506,-892.15559837,0.00765614,120]
[358263365,1744878650515,-31102.62,0.00767123,7]
[358263366,1744878650525,-588.48,0.00767123,120]
[358263367,1744878650535,-1202.53,0.00767123,120]
[358263368,1744878650545,-3524.25,0.00767123,120]
[358263369,1744878650554,-197.6584373,0.00767123,120]
[358263370,1744878650565,-2000.0,0.00769,60]
[358263371,1744878650576,-222.22222222,0.007774,120]
[358263372,1744878650587,-300.0,0.0078,120]
[358263373,1744878650598,-40881.3575871,0.00789449,30]
[358263374,1744878650608,-30978.5493624,0.00789449,30]
[358263375,1744878650617,-171.68523169,0.0078989,120]
[358263376,1744878650627,-97623.38814059,0.0078999,120]
[358263377,1744878667992,6322.183435,7.945e-05,2]
[358263378,1744878903222,1041.12,0.000165,60]
[358263379,1744879188236,-160.57,0.0002,2]
[358263380,1744879189608,-160.57,0.0002,2]
[358263381,1744879190908,-160.57,0.0002,2]
[358263382,1744879192255,-160.57,0.0002,2]
[358263383,1744879195024,-160.57,0.0002,2]
[358263384,1744879196954,-160.57,0.0002,2]
[358263385,1744879198180,-160.57,0.0002,2]
[358263386,1744879199345,-160.57,0.0002,2]
[358263387,1744879533133,-119.28645652,0.0002,2]
[358263388,1744879533156,-150.58007017,0.00022326,2]
[358263389,1744879533180,-169.17,0.00024932,2]
[358263390,1744879533202,-1000.0,0.0002494,2]
[358263391,1744879533224,-3000.0,0.00025,2]
[358263392,1744879533253,-153.55,0.000335,31]
[358263393,1744879533275,-150.0,0.00034548,10]
[358263394,1744879533296,-1059.66975678,0.00034995,2]
[358263395,1744879533318,-500.0,0.00035,2]
[358263396,1744879533339,-150.0,0.00035014,2]
[358263397,1744879533361,-1177.86717918,0.00035029,2]
[358263398,1744879533383,-250.0,0.0003685,2]
[358263399,1744879533406,-500.0,0.0003686,2]
[358263400,1744879533431,-153.55,0.000421,31]
[358263401,1744879533459,-153.55,0.000421,31]
[358263402,1744879533482,-169.17,0.00043607,2]
[358263403,1744879533506,-550.0,0.00044999,5]
[358263404,1744879533527,-10196.78599017,0.00045,30]
[358263406,1744879637090,-151.0,0.00035054,2]
[358263407,1744879637111,-708.5224293,0.00045,30]
[358263408,1744879637145,-1352.93218822,0.00045,30]
[358263411,1744879831799,-631.32,0.00045,30]
[358263434,1744879837700,-399.77425003,0.00045,30]
[358263435,1744879837711,-1823.28078962,0.00045,30]
[358263436,1744879837722,-19937.53842076,0.00045,30]
[358263437,1744879837733,-2144.67879693,0.00045,30]
[358263438,1744879837742,-218.39353314,0.00045859,2]
[358263439,1744879837751,-250.0,0.00045959,2]
[358263440,1744879837760,-16402.00859176,0.00046908,2]
[358263441,1744879837769,-1100.0,0.00046917,4]
[358263442,1744879837778,-6080.99658742,0.00046918,2]
[358263443,1744879837788,-4286.68,0.00048728,5]
[358263444,1744879837797,-1000.0,0.00048755,2]
[358263445,1744879837806,-2241.81,0.00048755,2]
[358263446,1744879837814,-9183.44,0.00048755,2]
[358263447,1744879837824,-250.0,0.000495,2]
[358263448,1744879837832,-250.0,0.000495,2]
[358263449,1744879837841,-15635.58,0.000495,30]
[358263450,1744879837850,-9999.99,0.000495,2]
[358263451,1744879837859,-723.40740411,0.00050322,2]
[358263452,1744879837867,-153.55,0.000507,48]
[358263453,1744879837876,-153.55,0.000507,48]
[358263454,1744879837885,-512.17,0.00051157,2]
[358263455,1744879837893,-154.74,0.00051374,2]
[358263456,1744879837902,-2478.42,0.00051406,2]
[358263457,1744879837911,-168.577633,0.00052054,120]
[358263458,1744879837920,-214.69,0.00052066,120]
[358263459,1744879837928,-282.096,0.00052191,95]
[358263460,1744879837937,-192.36064001,0.00052378,27]
[358263461,1744879837946,-10466.24509912,0.00052466,2]
[358263462,1744879837956,-49089.02519441,0.00052478,2]
[358263463,1744879837964,-4169.65314872,0.00052502,15]
[358263464,1744879837973,-168.577633,0.00052602,120]
[358263465,1744879837982,-168.577633,0.00053424,120]
[358263466,1744879837991,-200.0,0.00053475,7]
[358263467,1744879838000,-154.74,0.00053904,2]
[358263468,1744879838008,-168.577633,0.00054246,120]
[358263469,1744879838017,-1263.87,0.00054637,5]
[358263470,1744879838026,-1000.0,0.00054694,2]
[358263471,1744879838035,-500.0,0.00054794,120]
[358263472,1744879838045,-500.0,0.00054794,120]
[358263473,1744879838054,-179.39370182,0.00054794,5]
[358263474,1744879838064,-168.577633,0.00054794,120]
[358263475,1744879838073,-500.0,0.00054794,8]
[358263476,1744879838083,-500.0,0.00054794,120]
[358263477,1744879838092,-500.0,0.00054794,120]
[358263478,1744879838102,-500.0,0.00054794,120]
[358263479,1744879838111,-500.0,0.00054794,120]
[358263480,1744879838120,-500.0,0.00054794,120]
[358263481,1744879838129,-500.0,0.00054794,120]
[358263482,1744879838138,-500.0,0.00054794,120]